Cogmind - Beta 13 @@@ ROGUE MODE // 2024.05.17 @ 13:47:30 Player: CONM Result: Destroyed by as-13027 with Assembled Heavy Rifle Performance ------------- Evolutions (0) 0 Regions Visited (2) 400 Robots Destroyed (17) 85 Value Destroyed (278) 278 Prototype IDs (0) 0 Alien Tech Used (0) 0 Bonus (0) 0 TOTAL SCORE: 763 Bonus ------- None Cogmind --------- Core Integrity 0/250 Matter 298/300 Energy 246/250 System Corruption 5% Temperature Cool (2) Movement Walking (190) Ox1 Location -10/Mines Parts ------- > --- POWER (1) -------- Ion Engine (fused) > --- PROPULSION (2) --- Aluminum Leg Aluminum Leg > --- UTILITY (2) ------ Large Storage Unit Sensor Array > --- WEAPON (2) ------- Datajack > --- INVENTORY (15) --- Ion Engine Light Treads Wheel Small Storage Unit Signal Interpreter Improved Targeting Computer Small Laser Peak State ------------ > --- POWER ------------ Ion Engine > --- PROPULSION ------- Light Treads Light Treads > --- UTILITY ---------- Small Storage Unit Improved Terrain Scanner > --- WEAPON ----------- Small Laser Assault Rifle > --- INVENTORY -------- Ion Engine Compact Wheel [Rating: 9] Favorites ----------- Power Ion Engine Engine Ion Engine Propulsion Light Treads Treads Light Treads Leg Aluminum Leg Utility Large Storage Unit Device Sensor Array Storage Large Storage Unit Weapon Assault Rifle Energy Gun Small Laser Ballistic Gun Assault Rifle Launcher Grenade Launcher Special Melee Weapon Datajack Build | -11 -10 -10 ------- Run | Yrd Mat Min Slots Evolved . | . . . Power . | . . . Propulsion . | . . . Utility . | . . . Weapon . | . . . Parts Attached 30 | 7 19 4 Power 2 | 1 1 . Engine 2 | 1 1 . Core . | . . . Reactor . | . . . Propulsion 8 | 2 4 2 Treads 6 | 2 4 . Leg 2 | . . 2 Wheel . | . . . Hover . | . . . Flight . | . . . Utility 8 | 2 6 . Device 4 | 1 3 . Storage 4 | 1 3 . Processor . | . . . Hackware . | . . . Protection . | . . . Artifact . | . . . Weapon 12 | 2 8 2 Energy Gun 3 | 1 2 . Energy Cannon . | . . . Ballistic Gun 3 | 1 2 . Ballistic Cannon . | . . . Launcher 4 | . 3 1 Special Weapon . | . . . Impact Weapon . | . . . Slashing Weapon . | . . . Piercing Weapon . | . . . Special Melee Weapon 2 | . 1 1 Unidentified Prototypes . | . . . Parts Lost 3 | . 1 2 Power . | . . . Propulsion . | . . . Utility 1 | . 1 . Weapon 2 | . . 2 Highest Loss Streak 2 | . 1 2 To Critical Strikes . | . . . Average Slot Usage (%) 93 | . 93 91 Engine 14 | . 14 14 Treads 18 | . 24 . Leg 6 | . . 26 Device 13 | . 13 14 Storage 14 | . 14 14 Energy Gun 3 | . 5 . Ballistic Gun 12 | . 13 9 Launcher 7 | . 7 9 Naked Turns . | . . . Heaviest Build 31 | 14 31 31 Greatest Support 40 | 40 40 20 Greatest Overweight (x) 8 | . 8 1 Average Overweight (x) . | . . 1 Largest Inventory Capacity 25 | 8 25 15 Average Capacity 11 | 7 11 15 Most Carried 11 | 3 11 8 Average Carried 6 | 1 6 7 Final Capacity 15 | 8 15 15 Final Carried 7 | 3 7 7 Class Distribution -------------------- 100% | Mutant Dominant Class ---------------- Mutant | -10/Materials Mutant | -10/Mines Resources | -11 -10 -10 ----------- Run | Yrd Mat Min Matter Collected 451 | 276 119 56 Remotely . | . . . Salvage Created 298 | 26 194 78 Parts 33 | 4 24 5 Haulers Intercepted . | . . . Recyclers Shooed . | . . . Parts Field Recycled . | . . . Retrieved Matter . | . . . Parts Self-Destructed . | . . . Prevented . | . . . Kills | -11 -10 -10 ------- Run | Yrd Mat Min Combat Hostiles Destroyed 15 | . 11 4 Melee 1 | . . 1 Guns 5 | . 4 1 AOE 9 | . 7 2 Classes Destroyed 7 | 1 5 1 Worker 1 | . 1 . Builder 1 | . 1 . Tunneler 1 | 1 . . Operator 1 | . 1 . Swarmer 9 | . 9 . Grunt 4 | . 2 2 Assembled 2 | . . 2 Best Kill Streak 4 | 1 4 2 Combat Bots Only 3 | . 3 2 Max Kills in Single Turn 4 | 1 4 1 Gunslinging . | . . . Exploded 3 | . 3 1 Melee 1 | . . 1 Uniques/NPCs Destroyed . | . . . Combat | -11 -10 -10 -------- Run | Yrd Mat Min Hostile Shots Fired 73 | . 30 43 Missed 28 | . 9 19 Damage Taken 720 | . 257 463 Core 264 | . 79 185 Absorbed by Shields . | . . . Core Remaining (%) 100 | 100 . . Volleys Fired 20 | 8 8 4 Largest 2 | 2 2 2 Hottest 60 | 60 60 50 Shots Fired 40 | 16 16 8 Gun 33 | 16 13 4 Cannon . | . . . Launcher 7 | . 3 4 Special . | . . . Kinetic 20 | 8 8 4 Thermal 13 | 8 5 . Explosive 7 | . 3 4 Electromagnetic . | . . . Robot Hit Streak 5 | 2 2 5 Robot Miss Streak 4 | 4 2 1 Penetration Max . | . . . Secondary Targets . | . . . Shots Hit Robots 20 | 7 7 6 Core Hits 32 | 1 15 16 Critical Kills . | . . . Critical Parts Destroyed . | . . . Critical Strikes . | . . . Melee Attacks 3 | . . 3 Impact . | . . . Slashing . | . . . Piercing . | . . . Sneak Attacks . | . . . Combat Hostiles . | . . . Follow-up Attacks . | . . . Damage Inflicted 1157 | 83 608 466 Guns 161 | 83 63 15 Cannons . | . . . Explosions 974 | . 545 429 Melee . | . . . Ramming 22 | . . 22 Kinetic 116 | 50 51 15 Thermal 45 | 33 12 . Explosive 974 | . 545 429 Electromagnetic . | . . . Impact . | . . . Slashing . | . . . Piercing . | . . . Highest Corruption 5 | . . 5 Average Corruption 5 | . . 5 Corruption Purged . | . . . Corruption Blocked . | . . . Effects 4 | . . 4 Message Errors 1 | . . 1 Matter Fused 1 | . . 1 Energy Discharges 1 | . . 1 Parts Fused 1 | . . 1 Overload Shots . | . . . Overflow Damage 1 | . 1 . Projectiles . | . . . Explosions 1 | . 1 . Melee . | . . . Knockbacks . | . . . Impact . | . . . Kinetic . | . . . Secondary . | . . . Self-Inflicted Damage 56 | . 54 2 Shots 4 | . 2 2 Rammed . | . . . Targets Rammed 10 | . . 10 Kicked 10 | . . 10 Crushed . | . . . Highest Temperature 16 | . . 16 Average Temperature 5 | . . 5 Received Heat Transfer 159 | . 66 93 Siege Activations . | . . . Robots Corrupted . | . . . Combat Hostiles . | . . . Parts Fried . | . . . Impact Corruptions . | . . . Robots Melted . | . . . Combat Hostiles . | . . . Parts Melted . | . . . Heat Transferred 100 | 75 25 . Parts Sabotaged . | . . . Parts Stolen . | . . . Parts Stripped . | . . . Power Chain Reactions . | . . . Alert | -11 -10 -10 ------- Run | Yrd Mat Min Peak Influence 204 | 5 204 109 Initial 18 | . 3 18 Average 56 | . 61 61 Maximum Alert Level 1 | . 1 . Low Security (%) 98 | 100 97 100 Level 1 1 | . 2 . Level 2 . | . . . Level 3 . | . . . Level 4 . | . . . Level 5 . | . . . High Security . | . . . Max Security . | . . . Squads Dispatched 4 | . 4 . Investigation 1 | . 1 . Extermination . | . . . Reinforcement 3 | . 3 . Assault . | . . . Garrison . | . . . Intercept . | . . . Searches Triggered . | . . . Construction Impeded . | . . . Haulers Reinforced . | . . . Active Scanning Responses . | . . . Cargo Convoy Interrupts . | . . . Stealth | -11 -10 -10 --------- Run | Yrd Mat Min Distress Signals 1 | . 1 . Communications Jammed . | . . . Distress Signals . | . . . Times Spotted 46 | . 26 20 Peak Tracking Total 12 | . 6 12 Tactical Retreats 2 | . . 2 Traps | -11 -10 -10 ------- Run | Yrd Mat Min Traps Triggered 5 | . 5 . Indirectly . | . . . Trap Hack Attempts . | . . . Triggered . | . . . Disarmed . | . . . Reprogrammed . | . . . Reused . | . . . Traps Extracted . | . . . Installed . | . . . Triggered . | . . . Machines | -11 -10 -10 ---------- Run | Yrd Mat Min Machines Disabled 1 | . 1 . Max in Single Turn 1 | . 1 . Machines Repaired . | . . . Machines Dismantled . | . . . Machines Sabotaged . | . . . Overloaded Fab Kills . | . . . Hacking | -11 -10 -10 --------- Run | Yrd Mat Min Machines Accessed 5 | . 5 . Terminals 4 | . 4 . Fabricators . | . . . Repair Stations . | . . . Recycling Units 1 | . 1 . Scanalyzers . | . . . Garrison Access . | . . . Total Hacks 11 | . 11 . Successful 6 | . 6 . Failed 5 | . 5 . Catastrophic 2 | . 2 . Database Lockouts . | . . . Manual 5 | . 5 . Terminals 8 | . 8 . Fabricators . | . . . Repair Stations . | . . . Recycling Units 3 | . 3 . Scanalyzers . | . . . Garrison Access . | . . . Terminal Hacks 3 | . 3 . Robot Analysis 1 | . 1 . Level Access Points 1 | . 1 . Branch Access Points 1 | . 1 . Fabricator Hacks . | . . . Repair Station Hacks . | . . . Recycling Unit Hacks 3 | . 3 . Process 1 | . 1 . Report Inventory 1 | . 1 . Retrieve Matter 1 | . 1 . Scanalyzer . | . . . Garrison Access Hacks . | . . . Unauthorized Hacks . | . . . Terminals . | . . . Fabricators . | . . . Repair Stations . | . . . Recycling Units . | . . . Scanalyzers . | . . . Garrison Access . | . . . Data Cores Recovered . | . . . Used . | . . . Hacking Detections 3 | . 3 . Full Trace Events . | . . . Feedback Events . | . . . Feedback Blocked . | . . . Robot Schematics Acquired . | . . . Robots Built . | . . . Authchips . | . . . Time . | . . . Total Robot Build Rating . | . . . Part Schematics Acquired . | . . . Parts Built . | . . . Authchips . | . . . Time . | . . . Total Part Build Rating . | . . . Parts Repaired . | . . . Time . | . . . Parts Recycled . | . . . Recycled Matter 226 | . 226 . Retrieved Matter 226 | . 226 . Retrieved Components . | . . . Parts Scanalyzed . | . . . Part Schematics Acquired . | . . . Parts Damaged . | . . . Bothacking | -11 -10 -10 ------------ Run | Yrd Mat Min Used RIF Installer . | . . . Robots Hacked 1 | . . 1 Non-combat . | . . . Combat 1 | . . 1 Robot Hacks Applied 1 | . . 1 parse_system 1 | . . 1 Relay Couplers Released . | . . . Fabnet Peak Effective % . | . . . Robots Rewired . | . . . Allies Hacked . | . . . Hacks Repelled . | . . . Allies | -11 -10 -10 -------- Run | Yrd Mat Min Total Allies . | . . . Largest Group . | . . . Highest-Rated Group . | . . . Highest-Rated Ally . | . . . Total Orders . | . . . Ally Attacks . | . . . Total Damage . | . . . Kills . | . . . Allies Corrupted . | . . . Allies Melted . | . . . Intel | -11 -10 -10 ------- Run | Yrd Mat Min Robot Analysis Total 1 | . 1 . Derelict Logs Recovered . | . . . Drone Launches . | . . . Drone Recoveries . | . . . Exploration | -11 -10 -10 ------------- Run | Yrd Mat Min Turns Passed 2568 | 231 1743 594 Spaces Moved 1239 | 123 849 267 Core 17 | 2 15 . Treads 963 | 121 834 8 Legs 259 | . . 259 Wheels . | . . . Hover . | . . . Flight . | . . . Fastest Speed 50 | 50 160 190 Average Speed 177 | 158 176 191 Slowest Speed 450 | 160 450 240 Overloaded Moves . | . . . Propulsion Burnouts . | . . . Robots Hopped . | . . . Cave-ins Triggered . | . . . Exploration Rate (%) 46 | 8 75 55 Regions Visited 2 Branch Regions 1 Pre-discovered Areas . | . . . Known Exits Taken 1 | . 1 . Unknown Exits Taken 1 | 1 . . Scrap Searched . | . . . Spaces Dug . | . . . Terrain Destroyed 72 | . 42 30 Melee . | . . . Projectile . | . . . AOE 72 | . 42 30 Terrain Rammed . | . . . Walls Destroyed . | . . . Machines Disabled . | . . . Actions | -11 -10 -10 --------- Run | Yrd Mat Min Total 1544 | 140 1073 331 Wait 228 | . 186 42 Move 1237 | 122 848 267 Hop . | . . . Pick Up 14 | 3 10 1 Fast Attach 11 | 7 3 1 Attach 7 | . 6 1 Detach . | . . . Swap 12 | . 10 2 Drop 2 | . 2 . Fire 20 | 8 8 4 Melee 3 | . . 3 Ram . | . . . Kick 10 | . . 10 Crush . | . . . Escape Stasis . | . . . Rewire . | . . . Trap . | . . . Miscellaneous . | . . . Route ------- -11/Scrapyard -10/Materials (discovered 4 exits: *Mat x3 / *Min) -10/Mines History --------- Turn | Location | Event 30 | -11/Scrapyard | Discovered new exit (range 16) 232 | -11/Scrapyard | Entered Materials 255 | -10/Materials | Identified exit to Materials 311 | -10/Materials | Build established: Mutant 1126 | -10/Materials | Identified exit to Mines 1975 | -10/Materials | Entered Mines 2353 | -10/Mines | Assembled infested the area 2358 | -10/Mines | Assisted by a Guerilla fighting off Assembled 2380 | -10/Mines | Core integrity fell below 50% 2388 | -10/Mines | Core integrity fell below 20% 2569 | -10/Mines | Destroyed by as-13027 with Assembled Heavy Rifle Last Messages --------------- 02383_ as-65290 suffers critical hit (Destroy). 02383_ as-65290 destroyed. 02385_ HV Slug penetrates as-00522. 02385_ as-00522 suffers critical hit (Destroy). 02387_ Knocked back. 02394_ =4&EGN B=7 :T QVW7W0 02472_ System corrupted: Matter fused (-8). 02492_ System corrupted: Ion Engine fused. 02514_ Knocked back. 02520_ Jacked as-72663... >>parse_system Reading system data... 02521_ Kicked as-72663 out of the way. 02531_ Kicked as-72663. 02535_ Kicked as-72663 out of the way. 02538_ Kicked as-72663. 02542_ Kicked as-72663 out of the way. 02544_ Kicked as-72663. 02544_ as-72663 destroyed. 02550_ System corrupted: Energy discharge (-67). Map ----- +----------------------------------------------------+ | | | | | | | | | | | | | | | | | | | | | | | | | | | | | | | | | | | | | | | ?????????????????????????????????????????????????? | | ?????????????????????????????????????????????????? | | ??????????????????####????#####??????????????????? | | ?????????####????## ##??## ##?????????????????? | | ????????## ##### #### #?????????????????? | | ????????# ##????????????????? | | ?????????# @ ##???????????????? | | ?????????### ##??????????????? | | ???????????# ##### ##?????????????? | | ??????????## ##???## #?????????????? | | ?????????## ##?????#### ##?????????????? | | ?????????# a #?????????####??????????????? | | ?????????# ##???????????????????????????? | | ?????????## ## #????????????????????????????? | | ??????????###?## #????????????????????????????? | | ???????????????## #????????????????????????????? | | ????????????????# ##???????????????????????????? | | ???????????????## ###?????????????????????????? | | ????????????#### ##????????????????????????? | | ????????????# ##???????????????????????? | | ????????????# ##??????????????????????? | | ????????????# ### ##?????????????????????? | | ????????????### ##?## ###???????????????????? | | ??????????????# ##???## ##??????????????????? | | ??????????????# #?????### ###????????????????? | | ??????????????# #???????## #????????????????? | | ??????????????# #????????# #????????????????? | | #????#????????# #???????## #????????????????? | | # ???# ???????# #??????## ##????????????????? | | # ??## #??????# #??????# ##?????????????????? | | # # #?????# #??????# ###########????????? | +----------------------------------------------------+ Best States ------------- Heat Dissipation 25 Energy Generation 10 Energy Capacity 250 Matter Stores 300 Matter Capacity 300 Sight Range 16 Robot Scan Range 14 Terrain Scan Range 16 Terrain Scan Density 10 Evasion (%) 40 Recoil Reduction 2 Item Schematics ----------------- None Robot Schematics ------------------ None Fabricated ------------ Nothing Alien Tech Used ----------------- None Achievements -------------- None Challenges ------------ None Game ------ Seed HeatSingularityCloak Manual? 0 Play Time 00:24:39 Cumulative 16.8 hours Start 2024.05.16 @ 13:33:10 End 2024.05.17 @ 13:47:30 Sessions 1 Manual Loads 0 Difficulty Rogue Special Mode None Game No. 37 Rogue 37 Adventurer 0 Explorer 0 Win Type - Total 0 Types 0/0/0/0/0/0/0/0/0 Lore% 15 Gallery% 15 Achievement% 15 Wizard Run 0 Options --------- Layout 1 ASCII 0 Keyboard 0 Movement Arrows Keybinds 0 Fullscreen 1 Font 24/Smallcaps Map View 50x40 Zoom Use 0% Tactical HUD 1 Map Filters NONE Filters NONE Steam 1 RUN: eb1e610e-29a7-4fa1-ad5e-341bded5362d